Cogmind - Beta 10.2 @@@ ROGUE MODE // 2022.01.09 @ 18:48:53 Player: Okkudo Result: Destroyed by Y-45 Defender with Beam Rifle Performance ------------- Evolutions (1) 500 Regions Visited (3) 600 Robots Destroyed (21) 105 Value Destroyed (612) 612 Prototype IDs (0) 0 Alien Tech Used (0) 0 Bonus (0) 0 TOTAL SCORE: 1817 Bonus ------- None Cogmind --------- Core Integrity 0/400 Matter 300/300 Energy 125/125 System Corruption 0% Temperature Cool (9) Movement Treading (160) Location -9/Storage Parts ------- > --- POWER (1) -------- Light Ion Engine > --- PROPULSION (3) --- Light Treads Light Treads > --- UTILITY (3) ------ Small Storage Unit Sensor Array Improved Terrain Scanner > --- WEAPON (2) ------- Heavy Assault Rifle Heavy Assault Rifle > --- INVENTORY (6) ---- Improved Treads Sensor Array Spread Laser Peak State ------------ > --- POWER ------------ Light Ion Engine > --- PROPULSION ------- Light Treads Light Treads > --- UTILITY ---------- Small Storage Unit Sensor Array Improved Terrain Scanner > --- WEAPON ----------- Heavy Assault Rifle Heavy Assault Rifle > --- INVENTORY -------- Sensor Array Spread Laser [Rating: 11] Favorites ----------- Power Light Ion Engine Engine Light Ion Engine Propulsion Aluminum Leg Treads Light Treads Leg Aluminum Leg Utility Small Storage Unit Device Improved Terrain Scanner Storage Small Storage Unit Weapon Light Assault Rifle Energy Gun Spread Laser Ballistic Gun Light Assault Rifle Build | -11 -10 -9 -9 ------- Run | Scr Mat Mat Sto Slots Evolved 2 | . . 2 . Power . | . . . . Propulsion 1 | . . 1 . Utility 1 | . . 1 . Weapon . | . . . . Parts Attached 25 | 7 1 9 8 Power 2 | 1 . . 1 Engine 2 | 1 . . 1 Core . | . . . . Reactor . | . . . . Propulsion 7 | 2 . 2 3 Treads 3 | . . . 3 Leg 4 | 2 . 2 . Wheel . | . . . . Hover . | . . . . Flight . | . . . . Utility 5 | 2 1 2 . Device 4 | 1 1 2 . Storage 1 | 1 . . . Processor . | . . . . Hackware . | . . . . Protection . | . . . . Artifact . | . . . . Weapon 11 | 2 . 5 4 Energy Gun 3 | . . 2 1 Energy Cannon . | . . . . Ballistic Gun 8 | 2 . 3 3 Ballistic Cannon . | . . . . Launcher . | . . . . Special Weapon . | . . . . Impact Weapon . | . . . . Slashing Weapon . | . . . . Piercing Weapon . | . . . . Special Melee Weapon . | . . . . Unidentified Prototypes . | . . . . Parts Lost 12 | . . 7 5 Power 1 | . . 1 . Propulsion 4 | . . 2 2 Utility 1 | . . 1 . Weapon 6 | . . 3 3 Highest Loss Streak 4 | . . 4 2 Average Slot Usage (%) 82 | . 100 82 76 Engine 8 | . 14 6 8 Treads 7 | . . . 15 Leg 14 | . 28 26 . Device 19 | . 14 19 22 Storage 11 | . 14 11 11 Energy Gun 1 | . . 4 . Ballistic Gun 18 | . 28 15 17 Naked Turns . | . . . . Heaviest Build 15 | 10 10 11 15 Greatest Support 40 | 20 20 30 40 Greatest Overweight (x) 3 | 1 . . 3 Average Overweight (x) . | . . . . Largest Inventory Capacity 6 | 6 6 6 6 Average Capacity 5 | 5 6 6 6 Most Carried 4 | 3 4 4 4 Average Carried 2 | 1 2 3 2 Final Capacity 6 | 6 6 6 6 Final Carried 4 | 2 4 4 3 Class Distribution -------------------- 60% | Mutant 40% | Scavenger-Mutant Dominant Class ---------------- Mutant | -10/Materials Mutant | -9/Materials Scavenger-Mutant | -9/Storage Resources | -11 -10 -9 -9 ----------- Run | Scr Mat Mat Sto Matter Collected 724 | 279 10 107 328 Remotely . | . . . . Salvage Created 821 | 105 47 245 424 Parts 63 | 6 4 18 35 Haulers Intercepted . | . . . . Recyclers Shooed 3 | . . . 3 Parts Field Recycled . | . . . . Retrieved Matter . | . . . . Parts Self-Destructed . | . . . . Prevented . | . . . . Kills | -11 -10 -9 -9 ------- Run | Scr Mat Mat Sto Combat Hostiles Destroyed 17 | . 1 8 8 Guns 17 | . 1 8 8 Classes Destroyed 7 | 2 1 2 2 Worker 1 | . . . 1 Tunneler 1 | 1 . . . Recycler 1 | 1 . . . Watcher 1 | . . . 1 Swarmer 4 | . . 4 . Grunt 6 | . 1 3 2 Sentry 7 | . . 1 6 Best Kill Streak 5 | 2 1 4 5 Combat Bots Only 4 | . 1 4 2 Max Kills in Single Turn 1 | 1 1 1 1 Gunslinging . | . . . . Exploded . | . . . . Melee . | . . . . Uniques/NPCs Destroyed . | . . . . Combat | -11 -10 -9 -9 -------- Run | Scr Mat Mat Sto Damage Taken 1621 | . . 892 729 Core 400 | . . 155 245 Absorbed by Shields . | . . . . Core Remaining (%) 100 | 100 100 . . Volleys Fired 126 | 7 6 50 63 Largest 2 | 2 2 2 2 Hottest 85 | 40 40 65 85 Shots Fired 187 | 9 12 72 94 Gun 187 | 9 12 72 94 Cannon . | . . . . Launcher . | . . . . Special . | . . . . Kinetic 171 | 9 12 59 91 Thermal 16 | . . 13 3 Explosive . | . . . . Electromagnetic . | . . . . Robot Hit Streak 22 | 3 4 9 22 Robot Miss Streak 4 | 3 2 3 4 Penetration Max . | . . . . Secondary Targets . | . . . . Shots Hit Robots 127 | 6 7 50 64 Core Hits 47 | 4 3 20 20 Critical Hits 1 | . . . 1 Critical Kills . | . . . . Critical Parts Destroyed 1 | . . . 1 Melee Attacks . | . . . . Impact . | . . . . Slashing . | . . . . Piercing . | . . . . Sneak Attacks . | . . . . Combat Hostiles . | . . . . Follow-up Attacks . | . . . . Damage Inflicted 1360 | 51 33 416 860 Guns 1360 | 51 33 416 860 Cannons . | . . . . Explosions . | . . . . Melee . | . . . . Ramming . | . . . . Kinetic 1218 | 51 33 331 803 Thermal 142 | . . 85 57 Explosive . | . . . . Electromagnetic . | . . . . Impact . | . . . . Slashing . | . . . . Piercing . | . . . . Highest Corruption . | . . . . Average Corruption . | . . . . Corruption Purged . | . . . . Overload Shots . | . . . . Overflow Damage . | . . . . Projectiles . | . . . . Explosions . | . . . . Melee . | . . . . Knockbacks . | . . . . Impact . | . . . . Kinetic . | . . . . Secondary . | . . . . Self-Inflicted Damage . | . . . . Shots . | . . . . Rammed . | . . . . Targets Rammed . | . . . . Kicked . | . . . . Crushed . | . . . . Highest Temperature 55 | . . 55 46 Average Temperature 20 | . . 20 20 Received Heat Transfer 582 | . . 345 237 Siege Activations . | . . . . Robots Corrupted . | . . . . Combat Hostiles . | . . . . Parts Fried . | . . . . Impact Corruptions . | . . . . Robots Melted . | . . . . Combat Hostiles . | . . . . Parts Melted . | . . . . Heat Transferred 215 | . . 145 70 Parts Sabotaged . | . . . . Parts Stolen . | . . . . Parts Stripped . | . . . . Power Chain Reactions . | . . . . Missiles Intercepted . | . . . . Alert | -11 -10 -9 -9 ------- Run | Scr Mat Mat Sto Peak Influence 360 | 10 56 168 360 Initial 70 | . 6 23 70 Average 110 | 2 30 78 180 Maximum Alert Level 1 | . . . 1 Low Security (%) 87 | 100 100 100 71 Level 1 12 | . . . 28 Level 2 . | . . . . Level 3 . | . . . . Level 4 . | . . . . Level 5 . | . . . . High Security . | . . . . Max Security . | . . . . Squads Dispatched 4 | . 1 1 2 Investigation 1 | . . 1 . Extermination . | . . . . Reinforcement 3 | . 1 . 2 Assault . | . . . . Garrison . | . . . . Intercept . | . . . . Construction Impeded . | . . . . Haulers Reinforced . | . . . . Stealth | -11 -10 -9 -9 --------- Run | Scr Mat Mat Sto Distress Signals 4 | . 1 . 3 Communications Jammed . | . . . . Distress Signals . | . . . . Times Spotted 28 | . 3 10 15 Peak Tracking Total 5 | . 2 5 3 Tactical Retreats . | . . . . Traps | -11 -10 -9 -9 ------- Run | Scr Mat Mat Sto Traps Triggered 2 | . . 1 1 Indirectly . | . . . . Trap Hack Attempts . | . . . . Triggered . | . . . . Disarmed . | . . . . Reprogrammed . | . . . . Reused . | . . . . Traps Extracted . | . . . . Installed . | . . . . Triggered . | . . . . Machines | -11 -10 -9 -9 ---------- Run | Scr Mat Mat Sto Machines Disabled 1 | . . . 1 Max in Single Turn 1 | . . . 1 Machines Sabotaged . | . . . . Garrisons Compromised . | . . . . Overloaded Fab Kills . | . . . . Fab Network Shutdowns . | . . . . Hacking | -11 -10 -9 -9 --------- Run | Scr Mat Mat Sto Machines Accessed 2 | . 1 . 1 Terminals 2 | . 1 . 1 Fabricators . | . . . . Repair Stations . | . . . . Recycling Units . | . . . . Scanalyzers . | . . . . Garrison Access . | . . . . Total Hacks 9 | . 4 . 5 Successful 6 | . 1 . 5 Failed 3 | . 3 . . Catastrophic . | . . . . Database Lockouts . | . . . . Manual . | . . . . Terminals 9 | . 4 . 5 Fabricators . | . . . . Repair Stations . | . . . . Recycling Units . | . . . . Scanalyzers . | . . . . Garrison Access . | . . . . Terminal Hacks 6 | . 1 . 5 Robot Analysis 1 | . 1 . . Fabricator Index 1 | . . . 1 Alert Level 1 | . . . 1 Locate Traps 1 | . . . 1 Maintenance Status 1 | . . . 1 Registered Components 1 | . . . 1 Fabricator Hacks . | . . . . Repair Station Hacks . | . . . . Recycling Unit Hacks . | . . . . Scanalyzer . | . . . . Garrison Access Hacks . | . . . . Unauthorized Hacks . | . . . . Terminals . | . . . . Fabricators . | . . . . Repair Stations . | . . . . Recycling Units . | . . . . Scanalyzers . | . . . . Garrison Access . | . . . . Data Cores Recovered . | . . . . Used . | . . . . Hacking Detections 1 | . 1 . . Full Trace Events 1 | . 1 . . Feedback Events . | . . . . Feedback Blocked . | . . . . Robot Schematics Acquired . | . . . . Robots Built . | . . . . Matter . | . . . . Time . | . . . . Total Robot Build Rating . | . . . . Part Schematics Acquired . | . . . . Parts Built . | . . . . Matter . | . . . . Time . | . . . . Total Part Build Rating . | . . . . Parts Repaired . | . . . . Time . | . . . . Parts Recycled . | . . . . Recycled Matter . | . . . . Retrieved Matter . | . . . . Retrieved Components . | . . . . Parts Scanalyzed . | . . . . Part Schematics Acquired . | . . . . Parts Damaged . | . . . . Bothacking | -11 -10 -9 -9 ------------ Run | Scr Mat Mat Sto Used RIF Installer . | . . . . Robots Hacked . | . . . . Non-combat . | . . . . Combat . | . . . . Robot Hacks Applied . | . . . . Relay Couplers Released . | . . . . Robots Rewired . | . . . . Allies Hacked . | . . . . Hacks Repelled . | . . . . Allies | -11 -10 -9 -9 -------- Run | Scr Mat Mat Sto Total Allies . | . . . . Largest Group . | . . . . Highest-Rated Group . | . . . . Highest-Rated Ally . | . . . . Total Orders . | . . . . Ally Attacks . | . . . . Total Damage . | . . . . Kills . | . . . . Allies Corrupted . | . . . . Allies Melted . | . . . . Intel | -11 -10 -9 -9 ------- Run | Scr Mat Mat Sto Robot Analysis Total 1 | . 1 . . Derelict Logs Recovered . | . . . . Drone Launches . | . . . . Drone Recoveries . | . . . . Exploration | -11 -10 -9 -9 ------------- Run | Scr Mat Mat Sto Turns Passed 812 | 77 111 264 360 Spaces Moved 334 | 41 75 101 117 Core 22 | 8 . . 14 Treads 92 | . . . 92 Legs 220 | 33 75 101 11 Wheels . | . . . . Hover . | . . . . Flight . | . . . . Fastest Speed 50 | 50 120 120 120 Average Speed 132 | 114 120 120 156 Slowest Speed 200 | 120 120 120 200 Overloaded Moves . | . . . . Propulsion Burnouts . | . . . . Robots Hopped . | . . . . Cave-ins Triggered . | . . . . Exploration Rate (%) 16 | 3 19 8 35 Regions Visited 3 Branch Regions 1 Pre-discovered Areas . | . . . . Known Exits Taken . | . . . . Unknown Exits Taken 3 | 1 1 1 . Scrap Searched . | . . . . Spaces Dug . | . . . . Terrain Destroyed . | . . . . Melee . | . . . . Projectile . | . . . . AOE . | . . . . Terrain Rammed . | . . . . Walls Destroyed . | . . . . Machines Disabled . | . . . . Actions | -11 -10 -9 -9 --------- Run | Scr Mat Mat Sto Total 534 | 63 86 182 203 Wait 25 | . 1 15 9 Move 331 | 40 74 100 117 Hop . | . . . . Pick Up 25 | 9 3 7 6 Fast Attach . | . . . . Attach 20 | 7 . 6 7 Detach . | . . . . Swap 5 | . 1 3 1 Drop 2 | . 1 1 . Fire 126 | 7 6 50 63 Melee . | . . . . Ram . | . . . . Kick . | . . . . Crush . | . . . . Escape Stasis . | . . . . Rewire . | . . . . Trap . | . . . . Miscellaneous . | . . . . Route ------- -11/Scrapyard -10/Materials -9/Materials -9/Storage History --------- Turn | Location | Event 6 | -11/Scrapyard | Discovered new exit (range 16) 78 | -11/Scrapyard | Entered Materials 164 | -10/Materials | Discovered new exit (range 7) 189 | -10/Materials | Entered another Materials area 189 | -9/Materials | Evolved 2 slots: Propulsion x1, Utility x1 308 | -9/Materials | Build established: Mutant 323 | -9/Materials | Discovered new exit (range 15) 389 | -9/Materials | Lost 4 parts (1p1u2w) 453 | -9/Materials | Entered Storage 485 | -9/Storage | Core integrity fell below 50% 626 | -9/Storage | Core integrity fell below 20% 813 | -9/Storage | Destroyed by Y-45 Defender with Beam Rifle Last Messages --------------- 00757_ G-34 Mercenary destroyed. 00758_ K-01 Serf collects debris. 00761_ Acquired 10 matter. 00763_ Acquired 36 matter. 00763_ K-01 Serf collects debris. 00763_ R-06 Scavenger collects Heat Sink. 00773_ Acquired 23 matter. 00775_ K-01 Serf cleans the Component Storage. 00776_ Acquired 43 matter. 00778_ K-01 Serf cleans the Component Storage. 00779_ Acquired 11 matter. 00782_ Acquired Imp. Treads. 00784_ K-01 Serf destroyed. 00794_ Component Storage disabled. 00797_ O-16 Technician uses terminal to summon reinforcements. 00797_ ALERT: Hostiles spotted, dispatching reinforcements to Terminal S010. 00797_ O-16 Technician locks terminal. 00809_ Y-45 Defender destroyed. 00810_ K-01 Serf collects debris. 00812_ Acquired 42 matter. Map ----- +----------------------------------------------------+ | ##??? ? ^^ ?????????????????????????????????????? | | #???#? ^ ?????????????????????????????????????? | | #????? "T"????????????????????????????????????? | | #???? ???????????????????????????????????? | | #???? ???????????????????????????????????? | | ##### ^ ??????????????????????????????????? | | ^ ??????????????????????????????????? | | ^ ???#?????#????????????????????????? | | !/ #?#???????????????????????????????? | | / ??????#???#??????????????????????? | | ?????????????????????????????????? | | ????#????????????????????????????? | | # ###########/???????????????????????????????????? | | # #???? ?????????????????????????????????????????? | | # ##???????????? ?????????????????"?????????????? | | # #?#????? ?????? ????????"?????????????????????? | | # #?### ? ???? ?????????????? ?? ????????????????? | | # #??#? ?? ??? ?? ??#???????????????????????????? | | # ##????? ?? ??? #??????#?#?#?????#???????????? | | #/####??###+#####################????????????????? | | ##### # !! ###### ???????? | | + w !!# ! Y%! ???????? | | ##### kr # !% ###??????????????? | | ""??# ###T###=*k# #????????????????? | | Y"#?# #?#####=* /a[ #???#????????????? | | ""### #?????#==!#=@""""" #????????????????? | | = ###?# #?????# # =""""" #????????????????? | | #???# #???? # ? # """" #????????????????? | | #???# #?????# # o #??????? ????????? | | #+####???# #?????# ##""T""###? ???? ?????????? | | ^^??????? #?????# ##"""""#??????????????????? | | ^^??????? # ????+ ########??????#?#?????????? | | ^^??????? #?????# #??#??????????????????????? | | ????????######?????# #??#???#??????????????????? | | ?????????????? ????# ? #?????##????? ????????????? | | ?????##????????????# #?#???????????????????????? | | ????????????#??????# #????#????????????????????? | | ???????????????????# ??????????????????????????? | | ???????????????????# ?#????????????????????????? | | ??????????????????#? ??????????????????????????? | | ?????????????????????????????????????????????????? | | ?????????????????????????????????????????????????? | | ?????????????????????????????????????????????????? | | ?????????????????????????????????????????????????? | | ?????????????????????????????????????????????????? | | ?????????????????????????????????????????????????? | | ?????????????????????????????????????????????????? | | ?????????????????????????????????????????????????? | | | | | +----------------------------------------------------+ Best States ------------- Heat Dissipation 28 Energy Generation 10 Energy Capacity 125 Matter Stores 300 Matter Capacity 300 Sight Range 16 Robot Scan Range 10 Terrain Scan Range 16 Terrain Scan Density 10 Evasion (%) 40 Recoil Reduction 2 Item Schematics ----------------- None Robot Schematics ------------------ None Fabricated ------------ Nothing Alien Tech Used ----------------- None Achievements -------------- None Challenges ------------ None Game ------ Seed PhasingMasterComputer Manual? 0 Play Time 00:14:05 Cumulative 21.4 hours Start 2022.01.09 @ 18:36:19 End 2022.01.09 @ 18:48:53 Sessions 1 Manual Loads 0 Difficulty Rogue Special Mode None Game No. 42 Rogue 42 Adventurer 0 Explorer 0 Win Type - Total 0 Types 0/0/0/0/0/0/0/0/0 Lore% 21 Gallery% 20 Achievement% 15 Wizard Run 0 Options --------- ASCII 0 Keyboard 0 Movement Mouse Keybinds 0 Fullscreen 1 Font 12/Terminus Map View 83x54 Tactical HUD 1 Map Filters NONE Filters NONE Steam 1 RUN: eb09f1d3-69f4-48ec-9be4-ba29336e4ba4